lending/lending_fUSD_20250425
["ID","MTS","AMOUNT","RATE_DAILY","PERIOD"]
[358958997,1745587873340,-282.97046141,0.0003589,2]
[358958998,1745587873350,-500.0,0.0003589,2]
[358958999,1745587873360,-500.0,0.0003589,2]
[358959000,1745587873369,-500.0,0.0003589,2]
[358959001,1745587873379,-500.0,0.0003589,2]
[358959002,1745587873388,-500.0,0.0003589,2]
[358959003,1745587873397,-667.45,0.0003589,2]
[358959004,1745587873407,-1281.04,0.0003589,2]
[358959005,1745587873417,-875.42,0.0003589,2]
[358959006,1745587873426,-500.0,0.0003589,2]
[358959007,1745587873436,-500.0,0.0003589,2]
[358959008,1745587873445,-500.0,0.0003589,2]
[358959009,1745587873455,-500.0,0.0003589,2]
[358959010,1745587873468,-500.0,0.0003589,2]
[358959011,1745587873477,-623.9,0.0003589,2]
[358959012,1745587873487,-500.0,0.0003589,2]
[358959013,1745587873497,-500.0,0.0003589,2]
[358959014,1745587873506,-516.07147534,0.0003589,2]
[358959015,1745587873515,-500.0,0.0003589,2]
[358959016,1745587873526,-500.0,0.0003589,2]
[358959017,1745587873535,-500.0,0.0003589,2]
[358959018,1745587873545,-500.0,0.0003589,2]
[358959019,1745587873554,-607.31312222,0.0003589,2]
[358959020,1745587873566,-500.0,0.0003589,2]
[358959021,1745587873576,-500.0,0.0003589,2]
[358959022,1745587873586,-500.0,0.0003589,2]
[358959023,1745587873596,-500.0,0.0003589,2]
[358959024,1745587873606,-1036.33,0.0003589,2]
[358959025,1745587873615,-500.0,0.0003589,2]
[358959026,1745587873626,-541.62,0.0003589,2]
[358959027,1745587873635,-1549.0,0.0003589,2]
[358959028,1745587873645,-1449.12,0.0003589,2]
[358959029,1745587873655,-500.0,0.0003589,2]
[358959030,1745587873665,-500.0,0.0003589,2]
[358959031,1745587873675,-530.22,0.0003589,2]
[358959032,1745587873684,-1055.52,0.0003589,2]
[358959033,1745587873695,-644.02,0.0003589,2]
[358959034,1745587873704,-500.0,0.0003589,2]
[358959035,1745587873714,-500.0,0.0003589,2]
[358959036,1745587873724,-500.0,0.0003589,2]
[358959037,1745587873733,-500.0,0.0003589,2]
[358959038,1745587873743,-569.44235461,0.0003589,2]
[358959039,1745587873753,-520.1,0.0003589,2]
[358959040,1745587873763,-386.40983222,0.0003589,2]
[358959041,1745587873772,-575.31095278,0.0003589,2]
[358959042,1745587873782,-1178.77,0.0003589,2]
[358959043,1745587873791,-500.0,0.0003589,2]
[358959044,1745587873801,-500.0,0.0003589,2]
[358959045,1745587873810,-500.0,0.0003589,2]
[358959046,1745587873823,-500.0,0.0003589,2]
[358959047,1745587873833,-928.79,0.0003589,2]
[358959048,1745587873842,-500.0,0.0003589,2]
[358959049,1745587873851,-502.18,0.0003589,2]
[358959050,1745587873861,-521.29,0.0003589,2]
[358959051,1745587873870,-564.21574373,0.0003589,2]
[358959052,1745587873880,-840.82,0.0003589,2]
[358959053,1745587873889,-151.0,0.0003589,7]
[358959054,1745587873898,-500.0,0.0003589,2]
[358959055,1745587873908,-500.0,0.0003589,2]
[358959056,1745587873917,-500.0,0.0003589,2]
[358959057,1745587873927,-500.0,0.0003589,2]
[358959058,1745587873936,-1883.8,0.0003589,2]
[358959059,1745587873946,-500.0,0.0003589,2]
[358959060,1745587873955,-500.0,0.0003589,2]
[358959061,1745587873965,-500.0,0.0003589,2]
[358959062,1745587873974,-500.0,0.0003589,2]
[358959063,1745587873984,-500.0,0.0003589,2]
[358959064,1745587873994,-532.96747355,0.0003589,2]
[358959065,1745587874003,-520.35274202,0.0003589,2]
[358959066,1745587874013,-500.0,0.0003589,2]
[358959067,1745587874022,-500.0,0.0003589,2]
[358959068,1745587874031,-527.36830734,0.0003589,2]
[358959069,1745587874041,-500.0,0.0003589,2]
[358959070,1745587874050,-521.82237146,0.0003589,2]
[358959071,1745587874059,-500.0,0.0003589,2]
[358959072,1745587874071,-500.0,0.0003589,2]
[358959073,1745587874081,-500.0,0.0003589,2]
[358959074,1745587874090,-500.0,0.0003589,2]
[358959075,1745587874099,-686.42,0.0003589,2]
[358959076,1745587874109,-500.0,0.0003589,2]
[358959077,1745587874118,-500.0,0.0003589,2]
[358959078,1745587874128,-500.0,0.0003589,2]
[358959079,1745587874138,-1055.72,0.0003589,2]
[358959080,1745587874148,-517.24,0.0003589,2]
[358959081,1745587874157,-500.0,0.0003589,2]
[358959082,1745587874166,-500.0,0.0003589,2]
[358959083,1745587874175,-500.0,0.0003589,2]
[358959084,1745587874185,-556.27,0.0003589,2]
[358959085,1745587874194,-500.0,0.0003589,2]
[358959086,1745587874203,-1357.86,0.0003589,2]
[358959087,1745587874213,-500.0,0.0003589,2]
[358959088,1745587874222,-500.0,0.0003589,2]
[358959089,1745587874235,-989.16,0.0003589,2]
[358959090,1745587874244,-597.18,0.0003589,2]
[358959091,1745587874254,-288.75025776,0.0003589,2]
[358959092,1745587874263,-565.19,0.0003589,2]
[358959093,1745587874275,-553.9462189,0.0003589,2]
[358959094,1745587874284,-500.0,0.0003589,2]
[358959095,1745587874294,-860.36,0.0003589,2]
[358959096,1745587874305,-797.02,0.0003589,2]
[358959097,1745587874315,-500.0,0.0003589,2]
[358959098,1745587874325,-500.0,0.0003589,2]
[358959099,1745587874334,-565.43,0.0003589,2]
[358959100,1745587874344,-500.0,0.0003589,2]
[358959101,1745587874353,-500.0,0.0003589,2]
[358959102,1745587874363,-500.0,0.0003589,2]
[358959103,1745587874372,-593.04,0.0003589,2]
[358959104,1745587874381,-1103.3,0.0003589,2]
[358959105,1745587874391,-500.0,0.0003589,2]
[358959106,1745587874401,-632.43884672,0.0003589,2]
[358959107,1745587874410,-437.03022952,0.0003589,2]
[358959108,1745587874420,-534.56,0.0003589,2]
[358959109,1745587874429,-1090.24,0.0003589,2]
[358959110,1745587874438,-878.99,0.0003589,2]
[358959111,1745587874447,-500.0,0.0003589,2]
[358959112,1745587874456,-500.0,0.0003589,2]
[358959113,1745587874465,-500.0,0.0003589,2]
[358959114,1745587874475,-843.53,0.0003589,2]
[358959115,1745587874484,-498.82426593,0.0003589,2]
[358959116,1745587874494,-500.0,0.0003589,2]
[358959117,1745587874503,-500.0,0.0003589,2]
[358959118,1745587874512,-500.0,0.0003589,2]
[358959119,1745587874522,-500.0,0.0003589,2]
[358959120,1745587874531,-736.16,0.0003589,2]
[358959121,1745587874543,-500.0,0.0003589,2]
[358959122,1745587874552,-812.63,0.0003589,2]
[358959123,1745587874562,-880.44,0.0003589,2]
[358959124,1745587874572,-500.0,0.0003589,2]
[358959125,1745587874581,-500.0,0.0003589,2]
[358959126,1745587874591,-500.0,0.0003589,2]
[358959127,1745587874600,-500.0,0.0003589,2]
[358959128,1745587874610,-500.0,0.0003589,2]
[358959129,1745587874620,-565.61915449,0.0003589,2]
[358959130,1745587874630,-672.72,0.0003589,2]
[358959131,1745587874639,-719.69,0.0003589,2]
[358959132,1745587874648,-1691.971333,0.0003589,7]
[358959133,1745587874658,-500.0,0.0003589,2]
[358959134,1745587874668,-1161.28,0.0003589,2]
[358959135,1745587874678,-500.0,0.0003589,2]
[358959136,1745587874688,-1186.09,0.0003589,2]
[358959137,1745587874697,-1127.53,0.0003589,2]
[358959138,1745587874707,-1549.99,0.0003589,2]
[358959139,1745587874716,-500.0,0.0003589,2]
[358959140,1745587874726,-1691.971341,0.0003589,7]
[358959141,1745587874735,-1012.67,0.0003589,2]
[358959142,1745587874745,-522.71033533,0.0003589,2]
[358959143,1745587874755,-1849.08,0.0003589,2]
[358959144,1745587874764,-823.83,0.0003589,2]
[358959145,1745587874774,-820.01,0.0003589,2]
[358959146,1745587874783,-377.36224764,0.0003589,2]
[358959147,1745587874792,-502.71,0.0003589,2]
[358959148,1745587874802,-1170.9,0.0003589,2]
[358959149,1745587874813,-961.6,0.0003589,2]
[358959150,1745587874822,-1114.87,0.0003589,2]
[358959151,1745587874832,-500.0,0.0003589,2]
[358959152,1745587874841,-500.0,0.0003589,2]
[358959153,1745587874851,-977.61,0.0003589,2]
[358959154,1745587874860,-1108.5,0.0003589,2]
[358959155,1745587874871,-500.0,0.0003589,2]
[358959156,1745587874880,-500.0,0.0003589,2]
[358959157,1745587874889,-522.94,0.0003589,2]
[358959158,1745587874899,-500.0,0.0003589,2]
[358959159,1745587874908,-500.0,0.0003589,2]
[358959160,1745587874917,-917.06,0.0003589,2]
[358959161,1745587874927,-500.0,0.0003589,2]
[358959162,1745587874937,-1041.94,0.0003589,2]
[358959163,1745587874946,-500.0,0.0003589,2]
[358959164,1745587874957,-1364.16,0.0003589,2]
[358959165,1745587874969,-1145.2,0.0003589,2]
[358959166,1745587874979,-996.47,0.0003589,2]
[358959167,1745587874989,-500.0,0.0003589,2]
[358959168,1745587874998,-519.32102958,0.0003589,2]
[358959169,1745587875008,-500.0,0.0003589,2]
[358959170,1745587875018,-692.33,0.0003589,2]
[358959171,1745587875029,-524.0,0.0003589,2]
[358959172,1745587875038,-500.42,0.0003589,2]
[358959173,1745587875049,-500.0,0.0003589,2]
[358959174,1745587875059,-1434.94,0.0003589,2]
[358959175,1745587875071,-1185.38,0.0003589,2]
[358959176,1745587875081,-500.0,0.0003589,2]
[358959177,1745587875091,-500.0,0.0003589,2]
[358959178,1745587875101,-500.0,0.0003589,2]
[358959179,1745587875110,-780.33,0.0003589,2]
[358959180,1745587875120,-1027.07,0.0003589,2]
[358959181,1745587875130,-1175.87,0.0003589,2]
[358959182,1745587875141,-212.94826942,0.0003589,2]
[358959183,1745587875153,-768.62,0.0003589,2]
[358959184,1745587875164,-554.44,0.0003589,2]
[358959185,1745587875173,-536.16701576,0.0003589,2]
[358959186,1745587875184,-598.28,0.0003589,2]
[358959187,1745587875195,-2054.24,0.0003589,2]
[358959188,1745587875206,-548.23729602,0.0003589,2]
[358959189,1745587875215,-500.0,0.0003589,2]
[358959190,1745587875229,-1179.17,0.0003589,2]
[358959191,1745587875240,-868.87,0.0003589,2]
[358959192,1745587875251,-1080.93,0.0003589,2]
[358959193,1745587875261,-543.55589988,0.0003589,2]
[358959194,1745587875271,-500.0,0.0003589,2]
[358959195,1745587875281,-151.0,0.0003589,7]
[358959196,1745587875290,-573.95,0.0003589,2]
[358959197,1745587875301,-1942.92,0.0003589,2]
[358959198,1745587875312,-500.0,0.0003589,2]
[358959199,1745587875323,-500.0,0.0003589,2]
[358959200,1745587875333,-500.0,0.0003589,2]
[358959201,1745587875343,-500.0,0.0003589,2]
[358959202,1745587875353,-1039.89,0.0003589,2]
[358959203,1745587875362,-500.0,0.0003589,2]
[358959204,1745587875371,-582.93,0.0003589,2]
[358959205,1745587875380,-500.0,0.0003589,2]
[358959206,1745587875389,-871.81,0.0003589,2]
[358959207,1745587875398,-500.0,0.0003589,2]
[358959208,1745587875407,-511.9,0.0003589,2]
[358959209,1745587875416,-500.0,0.0003589,2]
[358959210,1745587875426,-286.50340961,0.0003589,2]
[358959211,1745587875435,-151.0,0.0003589,7]
[358959212,1745587875444,-1072.46,0.0003589,2]
[358959213,1745587875453,-151.0,0.0003589,7]
[358959214,1745587875462,-500.0,0.0003589,2]
[358959215,1745587875472,-500.0,0.0003589,2]
[358959216,1745587875482,-582.90857141,0.0003589,2]
[358959217,1745587875491,-983.32,0.0003589,2]
[358959218,1745587875501,-500.0,0.0003589,2]
[358959219,1745587875510,-500.0,0.0003589,2]
[358959220,1745587875519,-818.13,0.0003589,2]
[358959221,1745587875528,-500.0,0.0003589,2]
[358959222,1745587875538,-620.16,0.0003589,2]
[358959223,1745587875547,-1168.97,0.0003589,2]
[358959224,1745587875557,-500.0,0.0003589,2]
[358959225,1745587875570,-500.0,0.0003589,2]
[358959226,1745587875579,-500.0,0.0003589,2]
[358959227,1745587875588,-1494.34,0.0003589,2]
[358959228,1745587875598,-1159.23,0.0003589,2]
[358959229,1745587875607,-600.31,0.0003589,2]
[358959230,1745587875617,-827.14,0.0003589,2]
[358959231,1745587875626,-680.11,0.0003589,2]
[358959232,1745587875635,-1031.46,0.0003589,2]
[358959233,1745587875645,-500.0,0.0003589,2]
[358959234,1745587875654,-519.06923262,0.0003589,2]
[358959235,1745587875663,-500.0,0.0003589,2]
[358959236,1745587875672,-644.39,0.0003589,2]
[358959237,1745587875681,-723.84,0.0003589,2]
[358959238,1745587875691,-500.0,0.0003589,2]
[358959239,1745587875700,-500.0,0.0003589,2]
[358959240,1745587875710,-500.0,0.0003589,2]
[358959241,1745587875719,-1090.74,0.0003589,2]
[358959242,1745587875728,-1011.65,0.0003589,2]
[358959243,1745587875737,-500.0,0.0003589,2]
[358959244,1745587875747,-500.0,0.0003589,2]
[358959245,1745587875756,-743.07,0.0003589,2]
[358959246,1745587875976,-500.0,0.0003589,2]
[358959247,1745587875986,-1194.97,0.0003589,2]
[358959248,1745587875997,-782.79,0.0003589,2]
[358959249,1745587876007,-500.0,0.0003589,2]
[358959250,1745587876016,-538.99,0.0003589,2]
[358959251,1745587876027,-500.0,0.0003589,2]
[358959252,1745587876037,-1077.87,0.0003589,2]
[358959253,1745587876048,-1021.41,0.0003589,2]
[358959254,1745587876059,-2009.27,0.0003589,2]
[358959255,1745587876073,-500.0,0.0003589,2]
[358959256,1745587876082,-185.166163,0.0003589,2]
[358959257,1745587876092,-583.65,0.0003589,2]
[358959258,1745587876103,-964.75,0.0003589,2]
[358959259,1745587876112,-539.03,0.0003589,2]
[358959260,1745587876122,-500.0,0.0003589,2]
[358959261,1745587876132,-500.0,0.0003589,2]
[358959262,1745587876142,-908.28,0.0003589,2]
[358959263,1745587876152,-506.15,0.0003589,2]
[358959264,1745587876162,-185.166163,0.0003589,2]
[358959265,1745587876172,-500.0,0.0003589,2]
[358959266,1745587876182,-894.53,0.0003589,2]
[358959267,1745587876192,-903.82,0.0003589,2]
[358959268,1745587876203,-500.0,0.0003589,2]
[358959269,1745587876213,-612.16100398,0.0003589,2]
[358959270,1745587876227,-500.0,0.0003589,2]
[358959271,1745587876238,-500.0,0.0003589,2]
[358959272,1745587876250,-500.0,0.0003589,2]
[358959273,1745587876261,-500.0,0.0003589,2]
[358959274,1745587876270,-506.03,0.0003589,2]
[358959275,1745587876279,-500.0,0.0003589,2]
[358959276,1745587876289,-500.0,0.0003589,2]
[358959277,1745587876299,-500.0,0.0003589,2]
[358959278,1745587876310,-649.96,0.0003589,2]
[358959279,1745587876326,-657.34,0.0003589,2]
[358959280,1745587876335,-500.0,0.0003589,2]
[358959281,1745587876345,-500.0,0.0003589,2]
[358959282,1745587876355,-500.0,0.0003589,2]
[358959283,1745587876365,-411.64786422,0.0003589,2]
[358959284,1745587876374,-1178.97,0.0003589,2]
[358959285,1745587876385,-500.0,0.0003589,2]
[358959286,1745587876396,-679.54,0.0003589,2]
[358959287,1745587876406,-500.0,0.0003589,2]
[358959288,1745587876415,-543.45,0.0003589,2]
[358959289,1745587876425,-1021.91,0.0003589,2]
[358959290,1745587876434,-500.0,0.0003589,2]
[358959291,1745587876447,-500.0,0.0003589,2]
[358959292,1745587876457,-500.0,0.0003589,2]
[358959293,1745587876467,-521.62,0.0003589,2]
[358959294,1745587876477,-988.18,0.0003589,2]
[358959295,1745587876486,-1062.7,0.0003589,2]
[358959296,1745587876496,-500.0,0.0003589,2]
[358959297,1745587876506,-500.0,0.0003589,2]
[358959298,1745587876516,-917.14,0.0003589,2]
[358959299,1745587876527,-1088.74,0.0003589,2]
[358959300,1745587876537,-609.87,0.0003589,2]
[358959301,1745587876547,-728.13,0.0003589,2]
[358959302,1745587876556,-608.18,0.0003589,2]
[358959303,1745587876568,-503.32,0.0003589,2]
[358959304,1745587876577,-500.0,0.0003589,2]
[358959305,1745587876586,-668.25,0.0003589,2]
[358959306,1745587876596,-500.0,0.0003589,2]
[358959307,1745587876606,-705.94,0.0003589,2]
[358959308,1745587876615,-841.47,0.0003589,2]
[358959309,1745587876625,-510.89124661,0.0003589,2]
[358959310,1745587876634,-500.0,0.0003589,2]
[358959311,1745587876643,-500.0,0.0003589,2]
[358959312,1745587876654,-924.91,0.0003589,2]
[358959313,1745587876664,-500.0,0.0003589,2]
[358959314,1745587876674,-821.73,0.0003589,2]
[358959315,1745587876684,-825.41,0.0003589,2]
[358959316,1745587876694,-6461.02,0.0003589,2]
[358959317,1745587876703,-894.51,0.0003589,2]
[358959318,1745587876714,-500.0,0.0003589,2]
[358959319,1745587876724,-1286.61,0.0003589,2]
[358959320,1745587876735,-205.71904918,0.0003589,2]
[358959321,1745587876744,-500.0,0.0003589,2]
[358959322,1745587876760,-21620.36,0.0003589,2]
[358959323,1745587876770,-500.0,0.0003589,2]
[358959324,1745587876780,-500.0,0.0003589,2]
[358959325,1745587876791,-500.0,0.0003589,2]
[358959326,1745587876803,-833.35,0.0003589,2]
[358959327,1745587876817,-500.0,0.0003589,2]
[358959328,1745587876828,-500.0,0.0003589,2]
[358959329,1745587876838,-500.0,0.0003589,2]
[358959330,1745587876847,-544.64,0.0003589,2]
[358959331,1745587876857,-500.84,0.0003589,2]
[358959332,1745587876867,-500.0,0.0003589,2]
[358959333,1745587876877,-741.99,0.0003589,2]
[358959334,1745587876887,-500.0,0.0003589,2]
[358959335,1745587876897,-500.0,0.0003589,2]
[358959336,1745587876908,-1000.0,0.0003589,2]
[358959337,1745587876918,-10840.88,0.0003589,2]
[358959338,1745587876929,-500.0,0.0003589,2]
[358959339,1745587876940,-635.02,0.0003589,2]
[358959340,1745587876950,-541.09,0.0003589,2]
[358959341,1745587876960,-500.0,0.0003589,2]
[358959342,1745587876970,-827.21,0.0003589,2]
[358959343,1745587876980,-500.0,0.0003589,2]
[358959344,1745587876990,-500.0,0.0003589,2]
[358959345,1745587877001,-1099.99,0.0003589,2]
[358959346,1745587877011,-500.0,0.0003589,2]
[358959347,1745587877021,-500.0,0.0003589,2]
[358959348,1745587877031,-5721.34,0.0003589,2]
[358959349,1745587877040,-4171.73,0.0003589,2]
[358959350,1745587877048,-764.82,0.0003589,2]
[358959351,1745587877058,-1103.09,0.0003589,2]
[358959352,1745587877073,-500.0,0.0003589,2]
[358959353,1745587877081,-690.7,0.0003589,2]
[358959354,1745587877091,-814.29,0.0003589,2]
[358959355,1745587877099,-500.0,0.0003589,2]
[358959356,1745587877109,-500.0,0.0003589,2]
[358959357,1745587877118,-500.0,0.0003589,2]
[358959358,1745587877127,-500.0,0.0003589,2]
[358959359,1745587877136,-905.82,0.0003589,2]
[358959360,1745587877145,-500.0,0.0003589,2]
[358959361,1745587877155,-500.0,0.0003589,2]
[358959362,1745587877164,-500.0,0.0003589,2]
[358959363,1745587877174,-566.86,0.0003589,2]
[358959364,1745587877183,-1031.92,0.0003589,2]
[358959365,1745587877192,-500.0,0.0003589,2]
[358959366,1745587877202,-500.0,0.0003589,2]
[358959367,1745587877211,-1003.4,0.0003589,2]
[358959368,1745587877222,-500.0,0.0003589,2]
[358959369,1745587877235,-500.0,0.0003589,2]
[358959370,1745587877244,-806.86,0.0003589,2]
[358959371,1745587877254,-500.0,0.0003589,2]
[358959372,1745587877263,-500.0,0.0003589,2]
[358959373,1745587877275,-573.41642355,0.0003589,2]
[358959374,1745587877284,-500.0,0.0003589,2]
[358959375,1745587877294,-193390.01683277,0.0003589,2]
[358959376,1745587877967,-935.23643752,0.0003589,2]
[358959377,1745587877979,-37781.70515448,0.0003589,2]
[358959378,1745587879416,-387.78914224,0.00035616,2]
[358959379,1745587879431,-112.21085776,0.00035616,2]
[358959380,1745587879441,-217.77314224,0.0003589,2]
[358959381,1745587879466,-11968.96900003,0.0003589,2]
[358959382,1745587879478,-1150.00332899,0.0003589,2]
[358959383,1745587879490,-1587.03359657,0.0003589,2]
[358959384,1745587879511,-678.46196361,0.0003589,2]
[358959385,1745587879526,-5007.57992464,0.0003589,2]
[358959386,1745587885796,187.0,0.00036137,120]
[358959388,1745588269991,413.51292788,0.00037808,60]
[358959389,1745588491970,385.65,0.00037808,60]
[358959400,1745589032835,-250.0,0.0002042,2]
[358959415,1745589033349,-250.0,0.00021955,2]
[358959416,1745589033360,-644.30451587,0.00024571,2]
[358959417,1745589033833,-853.99818455,0.00024571,2]
[358959418,1745589033843,-300.0,0.00024571,2]
[358959419,1745589033853,-1200.0,0.00024571,2]
[358959420,1745589033863,-300.0,0.00024571,2]
[358959421,1745589033874,-13604.18507579,0.00024572,2]
[358959422,1745589033884,-174.39,0.00025319,2]
[358959423,1745589033894,-332.57027706,0.000259,6]
[358959424,1745589033904,-300.0,0.00026,2]
[358959425,1745589033914,-1200.0,0.000265,2]
[358959426,1745589033924,-600.0,0.00026751,2]
[358959427,1745589033934,-217.6100759,0.00026822,2]
[358959428,1745589033943,-332.57027685,0.00026831,6]
[358959429,1745589033954,-796.0,0.00026923,2]
[358959430,1745589033964,-1286.0,0.00026923,2]
[358959431,1745589033974,-3989.0,0.00026923,2]
[358959432,1745589033984,-877.0,0.00026923,2]
[358959433,1745589033995,-1200.0,0.000275,3]
[358959434,1745589034005,-332.57027685,0.00027762,7]
[358959435,1745589034015,-1250.0,0.000285,4]
[358959436,1745589034024,-332.57027685,0.00028693,8]
[358959437,1745589034034,-6652.52029823,0.00029568,2]
[358959438,1745589034044,-332.57027685,0.00029624,8]
[358959439,1745589034053,-1094.56,0.00029828,2]
[358959440,1745589034064,-150.99,0.00029923,2]
[358959441,1745589034074,-1284.0,0.00029923,2]
[358959442,1745589034084,-3989.0,0.00029923,2]
[358959443,1745589034094,-875.0,0.00029923,2]
[358959444,1745589034103,-332.57027685,0.00030555,9]
[358959445,1745589034113,-1818.98492101,0.00031022,2]
[358959446,1745589034123,-217.6100759,0.00031119,2]
[358959447,1745589034132,-332.57027685,0.00031486,10]
[358959448,1745589034142,-200.0,0.0003166,2]
[358959449,1745589034152,-174.86,0.00031665,2]
[358959450,1745589034162,-568.26784928,0.00031947,2]
[358959451,1745589034172,-1094.56,0.00032092,2]
[358959452,1745589034181,-1000.0,0.00032106,2]
[358959453,1745589034192,-610.0,0.00032129,2]
[358959454,1745589034202,-285.16,0.0003216,2]
[358959455,1745589034212,-332.57027685,0.00032417,10]
[358959456,1745589034222,-150.0,0.00032523,7]
[358959457,1745589034231,-5267.04293168,0.00032631,2]
[358959458,1745589034241,-156.98029015,0.00032631,2]
[358959459,1745589034251,-300.0,0.00032661,2]
[358959460,1745589034261,-207.4,0.00032798,2]
[358959461,1745589034271,-700.62049926,0.00032798,2]
[358959462,1745589034280,-152.8170618,0.00032798,2]
[358959463,1745589034289,-250.0,0.0003281,2]
[358959464,1745589034300,-166.65,0.0003281,2]
[358959465,1745589034309,-508.87,0.00032871,30]
[358959466,1745589034321,-153.57,0.00032877,2]
[358959467,1745589034331,-3989.0,0.00032923,2]
[358959468,1745589034340,-184.04,0.00033013,2]
[358959469,1745589034350,-332.57027685,0.00033348,11]
[358959470,1745589034360,-285.16,0.00033768,2]
[358959471,1745589034370,-181.72,0.00033958,2]
[358959472,1745589034380,-215.0738,0.00034167,2]
[358959473,1745589034390,-332.57027685,0.00034279,11]
[358959474,1745589034399,-1094.56,0.00034356,2]
[358959475,1745589034409,-150.0,0.00034548,10]
[358959476,1745589034419,-635.85,0.000348,31]
[358959477,1745589034429,-635.85,0.000348,31]
[358959478,1745589034440,-635.85,0.000348,31]
[358959479,1745589034450,-635.85,0.000348,31]
[358959480,1745589034461,-635.85,0.000348,31]
[358959481,1745589034471,-635.85,0.000348,31]
[358959482,1745589034481,-635.85,0.000348,31]
[358959483,1745589034491,-635.85,0.000348,31]
[358959484,1745589034502,-635.85,0.000348,31]
[358959485,1745589034511,-87.81133541,0.000348,31]
[358959493,1745589038495,-548.03866459,0.000348,31]
[358959494,1745589038505,-635.85,0.000348,31]
[358959495,1745589038515,-635.85,0.000348,31]
[358959496,1745589038525,-171.2284491,0.00034876,4]
[358959497,1745589038534,-587.43,0.00035,2]
[358959498,1745589038544,-332.57027685,0.0003521,12]
[358959499,1745589038554,-285.16,0.00035376,2]
[358959500,1745589038567,-765.044,0.00035393,42]
[358959501,1745589038578,-171.892,0.00035393,42]
[358959502,1745589038588,-217.6100759,0.00035416,2]
[358959503,1745589038599,-269.734,0.00035496,2]
[358959504,1745589038608,-1115.0421,0.00035496,2]
[358959505,1745589038618,-154.85887816,0.00035506,2]
[358959506,1745589038627,-1000.0,0.00035516,2]
[358959507,1745589038640,-324.2768,0.00035516,2]
[358959508,1745589038650,-4871.55335581,0.00035516,2]
[358959509,1745589038661,-1967.41000002,0.00035516,2]
[358959510,1745589038672,-1620.877762,0.00035516,2]
[358959511,1745589038684,-2290.16,0.00035516,2]
[358959512,1745589038695,-476.03,0.00035516,2]
[358959513,1745589038706,-79.04688217,0.00035516,2]
[358959514,1745589038716,-222.49414391,0.00035516,2]
[358959515,1745589038727,-142.45897392,0.00035516,2]
[358959530,1745589039469,-1662.4,0.00035516,2]
[358959531,1745589039481,-939.69,0.00035516,2]
[358959532,1745589040909,-325.37,0.0003475,2]
[358959533,1745589040919,-12293.56390066,0.00035516,2]
[358959534,1745589040930,-178.3922877,0.00035516,2]
[358959535,1745589040940,-672.0,0.00035516,2]
[358959536,1745589040950,-2210.47507328,0.00035516,9]
[358959537,1745589040960,-223.0315306,0.00035536,2]
[358959538,1745589040970,-672.0,0.00035571,2]
[358959539,1745589040979,-193.29377316,0.00035605,7]
[358959540,1745589040989,-500.0,0.00035605,7]
[358959541,1745589040999,-177.01618128,0.00035605,7]
[358959542,1745589041008,-6685.41180867,0.00035606,2]